fUST/lending_fUST_20250828
["ID","MTS","AMOUNT","RATE_DAILY","PERIOD"]
[381885890,1756390254923,-480.0,0.00020547,2]
[381885891,1756390254932,-480.0,0.00020547,2]
[381885892,1756390254941,-525.21,0.00020547,2]
[381885893,1756390254951,-480.0,0.00020547,2]
[381885894,1756390254961,-517.02,0.00020547,2]
[381885895,1756390254970,-632.48,0.00020547,2]
[381885896,1756390254980,-480.0,0.00020547,2]
[381885897,1756390254990,-480.0,0.00020547,2]
[381885898,1756390254999,-480.0,0.00020547,2]
[381885899,1756390255008,-480.0,0.00020547,2]
[381885900,1756390255018,-480.0,0.00020547,2]
[381885901,1756390255027,-702.46,0.00020547,2]
[381885902,1756390255036,-480.0,0.00020547,2]
[381885903,1756390255046,-491.59,0.00020547,2]
[381885904,1756390255055,-311.76705405,0.00020547,2]
[381885905,1756390255065,-543.54210536,0.00020547,2]
[381885906,1756390255074,-480.0,0.00020547,2]
[381885907,1756390255085,-480.0,0.00020547,2]
[381885908,1756390255094,-151.0,0.00020547,2]
[381885909,1756390255104,-738.47,0.00020547,2]
[381885910,1756390255113,-480.0,0.00020547,2]
[381885911,1756390255122,-496.16,0.00020547,2]
[381885912,1756390255132,-480.0,0.00020547,2]
[381885913,1756390255142,-480.0,0.00020547,2]
[381885914,1756390255152,-152.73395987,0.00020547,2]
[381885915,1756390255161,-480.0,0.00020547,2]
[381885916,1756390255170,-480.0,0.00020547,2]
[381885917,1756390255179,-606.98,0.00020547,2]
[381885918,1756390255189,-1150.46,0.00020547,2]
[381885919,1756390255198,-505.94,0.00020547,2]
[381885920,1756390255208,-480.0,0.00020547,2]
[381885921,1756390255217,-480.0,0.00020547,2]
[381885922,1756390255227,-480.0,0.00020547,2]
[381885923,1756390255238,-480.0,0.00020547,2]
[381885924,1756390255247,-480.0,0.00020547,2]
[381885925,1756390255266,-676.67,0.00020547,2]
[381885926,1756390255276,-566.43,0.00020547,2]
[381885927,1756390255286,-480.0,0.00020547,2]
[381885928,1756390255297,-480.0,0.00020547,2]
[381885929,1756390255308,-151.0,0.00020547,2]
[381885930,1756390255318,-480.0,0.00020547,2]
[381885931,1756390255327,-666.62,0.00020547,2]
[381885932,1756390255338,-480.0,0.00020547,2]
[381885933,1756390255347,-480.0,0.00020547,2]
[381885934,1756390255357,-151.0,0.00020547,2]
[381885935,1756390255368,-151.0,0.00020547,2]
[381885936,1756390255378,-2721.04,0.00020547,2]
[381885937,1756390255388,-480.0,0.00020547,2]
[381885938,1756390255398,-485.28,0.00020547,2]
[381885939,1756390255407,-859.16,0.00020547,2]
[381885940,1756390255417,-869.41,0.00020547,2]
[381885941,1756390255426,-480.0,0.00020547,2]
[381885942,1756390255435,-506.97379189,0.00020547,2]
[381885943,1756390255444,-480.0,0.00020547,2]
[381885944,1756390255455,-480.0,0.00020547,2]
[381885945,1756390255464,-1794.28,0.00020547,2]
[381885946,1756390255474,-480.0,0.00020547,2]
[381885947,1756390255485,-480.0,0.00020547,2]
[381885948,1756390255495,-480.0,0.00020547,2]
[381885949,1756390255508,-689.56,0.00020547,2]
[381885950,1756390255517,-480.0,0.00020547,2]
[381885951,1756390255527,-480.0,0.00020547,2]
[381885952,1756390255536,-480.0,0.00020547,2]
[381885953,1756390255546,-2148.57,0.00020547,2]
[381885954,1756390255555,-480.0,0.00020547,2]
[381885955,1756390255564,-480.0,0.00020547,2]
[381885956,1756390255574,-1096.18,0.00020547,2]
[381885957,1756390255583,-480.0,0.00020547,2]
[381885958,1756390255594,-480.0,0.00020547,2]
[381885959,1756390255603,-514.08,0.00020547,2]
[381885960,1756390255612,-577.34,0.00020547,2]
[381885961,1756390255622,-480.0,0.00020547,2]
[381885962,1756390255631,-480.0,0.00020547,2]
[381885963,1756390255641,-1731.68,0.00020547,2]
[381885964,1756390255650,-1238.18,0.00020547,2]
[381885965,1756390255660,-480.0,0.00020547,2]
[381885966,1756390255670,-2879.86,0.00020547,2]
[381885967,1756390255679,-538.0,0.00020547,2]
[381885968,1756390255689,-480.0,0.00020547,2]
[381885969,1756390255698,-480.0,0.00020547,2]
[381885970,1756390255708,-151.0,0.00020547,2]
[381885971,1756390255717,-480.0,0.00020547,2]
[381885972,1756390255726,-480.0,0.00020547,2]
[381885973,1756390255736,-450.08194787,0.00020547,2]
[381885974,1756390255745,-4523.88,0.00020547,2]
[381885975,1756390255755,-740.67,0.00020547,2]
[381885976,1756390255764,-480.0,0.00020547,2]
[381885977,1756390255774,-480.0,0.00020547,2]
[381885978,1756390255783,-2214.23,0.00020547,2]
[381885979,1756390255793,-2893.15,0.00020547,2]
[381885980,1756390255803,-1321.12,0.00020547,2]
[381885981,1756390255812,-480.0,0.00020547,2]
[381885982,1756390255822,-480.0,0.00020547,2]
[381885983,1756390255831,-480.0,0.00020547,2]
[381885984,1756390255840,-1313.43,0.00020547,2]
[381885985,1756390255849,-480.0,0.00020547,2]
[381885986,1756390255858,-480.0,0.00020547,2]
[381885987,1756390255867,-480.0,0.00020547,2]
[381885988,1756390255877,-480.0,0.00020547,2]
[381885989,1756390255886,-2213.76,0.00020547,2]
[381885990,1756390255895,-480.0,0.00020547,2]
[381885991,1756390255904,-480.0,0.00020547,2]
[381885992,1756390255914,-1462.65,0.00020547,2]
[381885993,1756390255924,-480.0,0.00020547,2]
[381885994,1756390255933,-3398.86,0.00020547,2]
[381885995,1756390255944,-480.0,0.00020547,2]
[381885996,1756390255953,-480.0,0.00020547,2]
[381885997,1756390255962,-480.0,0.00020547,2]
[381885998,1756390255971,-618.19,0.00020547,2]
[381885999,1756390255982,-609.17,0.00020547,2]
[381886000,1756390255992,-480.0,0.00020547,2]
[381886001,1756390256001,-480.0,0.00020547,2]
[381886002,1756390256050,-480.0,0.00020547,2]
[381886003,1756390256059,-480.0,0.00020547,2]
[381886004,1756390256068,-1003.09,0.00020547,2]
[381886005,1756390256077,-480.0,0.00020547,2]
[381886006,1756390256088,-620.20344508,0.00020547,2]
[381886007,1756390256097,-491.98,0.00020547,2]
[381886008,1756390256106,-572.96,0.00020547,2]
[381886009,1756390256115,-2866.05,0.00020547,2]
[381886010,1756390256124,-480.0,0.00020547,2]
[381886011,1756390256133,-480.0,0.00020547,2]
[381886012,1756390256143,-480.0,0.00020547,2]
[381886013,1756390256152,-480.0,0.00020547,2]
[381886014,1756390256161,-707.05,0.00020547,2]
[381886015,1756390256171,-621.84,0.00020547,2]
[381886016,1756390256180,-480.0,0.00020547,2]
[381886017,1756390256189,-683.04,0.00020547,2]
[381886018,1756390256199,-480.0,0.00020547,2]
[381886019,1756390256208,-480.0,0.00020547,2]
[381886020,1756390256217,-515.85,0.00020547,2]
[381886021,1756390256226,-151.0,0.00020547,2]
[381886022,1756390256236,-480.0,0.00020547,2]
[381886023,1756390256245,-480.0,0.00020547,2]
[381886024,1756390256254,-480.0,0.00020547,2]
[381886025,1756390256263,-151.0,0.00020547,2]
[381886026,1756390256273,-480.0,0.00020547,2]
[381886027,1756390256282,-1804.28,0.00020547,2]
[381886028,1756390256291,-937.39,0.00020547,2]
[381886029,1756390256300,-151.0,0.00020547,2]
[381886030,1756390256309,-480.0,0.00020547,2]
[381886031,1756390256319,-1344.44,0.00020547,2]
[381886032,1756390256328,-480.0,0.00020547,2]
[381886033,1756390256337,-768.17,0.00020547,2]
[381886034,1756390256346,-480.0,0.00020547,2]
[381886035,1756390256355,-480.0,0.00020547,2]
[381886036,1756390256364,-480.0,0.00020547,2]
[381886037,1756390256373,-480.0,0.00020547,2]
[381886038,1756390256383,-480.0,0.00020547,2]
[381886039,1756390256392,-2384.43,0.00020547,2]
[381886040,1756390256401,-2447.69,0.00020547,2]
[381886041,1756390256410,-480.0,0.00020547,2]
[381886042,1756390256419,-480.0,0.00020547,2]
[381886043,1756390256429,-480.0,0.00020547,2]
[381886044,1756390256438,-480.0,0.00020547,2]
[381886045,1756390256449,-872.41,0.00020547,2]
[381886046,1756390256458,-747.1,0.00020547,2]
[381886047,1756390256467,-480.0,0.00020547,2]
[381886048,1756390256477,-953.96,0.00020547,2]
[381886049,1756390256488,-1129.71,0.00020547,2]
[381886050,1756390256499,-151.0,0.00020547,2]
[381886051,1756390256509,-480.0,0.00020547,2]
[381886052,1756390256522,-192.5932,0.00020547,2]
[381886053,1756390256531,-192.5932,0.00020547,2]
[381886054,1756390256542,-192.5932,0.00020547,2]
[381886055,1756390256552,-192.5932,0.00020547,2]
[381886056,1756390256561,-1235.79,0.00020547,2]
[381886057,1756390256573,-480.0,0.00020547,2]
[381886058,1756390256583,-480.0,0.00020547,2]
[381886059,1756390256593,-480.0,0.00020547,2]
[381886060,1756390256602,-480.0,0.00020547,2]
[381886061,1756390256611,-151.0,0.00020547,2]
[381886062,1756390256620,-1430.38,0.00020547,2]
[381886063,1756390256628,-855.0,0.00020548,2]
[381886064,1756390256637,-500.0,0.00020573,2]
[381886065,1756390256646,-151.0,0.00020573,2]
[381886066,1756390256655,-151.0,0.000206,3]
[381886067,1756390256664,-168.0,0.000206,2]
[381886068,1756390256674,-168.0,0.0002067,2]
[381886069,1756390256683,-168.0,0.00020684,2]
[381886070,1756390256692,-216.713959,0.00020733,3]
[381886071,1756390256701,-153.198705,0.00020733,3]
[381886072,1756390256710,-216.713959,0.00020775,4]
[381886073,1756390256719,-153.198705,0.00020775,4]
[381886074,1756390256728,-216.713959,0.00020808,10]
[381886075,1756390256739,-153.198705,0.00020808,10]
[381886076,1756390256748,-1014.45769331,0.00020821,2]
[381886077,1756390256758,-1000.0,0.00020821,2]
[381886078,1756390256767,-500.0,0.00020821,2]
[381886079,1756390256776,-1000.0,0.00020821,2]
[381886080,1756390256785,-1000.0,0.00020821,2]
[381886081,1756390256794,-1000.0,0.00020821,2]
[381886082,1756390256803,-1000.0,0.00020821,2]
[381886083,1756390256812,-1000.0,0.00020821,2]
[381886084,1756390256822,-1006.19980553,0.00020821,2]
[381886085,1756390256831,-1000.0,0.00020821,2]
[381886086,1756390256841,-1000.0,0.00020821,2]
[381886087,1756390256850,-1000.0,0.00020821,2]
[381886088,1756390256859,-1000.0,0.00020821,2]
[381886089,1756390256871,-1000.0,0.00020821,2]
[381886090,1756390256881,-667.98518684,0.00020821,2]
[381886091,1756390256890,-1008.6012517,0.00020821,2]
[381886092,1756390256899,-151.0,0.00020821,2]
[381886093,1756390256908,-480.0,0.00020821,2]
[381886094,1756390256917,-480.0,0.00020821,2]
[381886095,1756390256926,-480.0,0.00020821,2]
[381886096,1756390256935,-480.0,0.00020821,2]
[381886097,1756390256944,-529.37,0.00020821,2]
[381886098,1756390256954,-365.31550978,0.00020821,2]
[381886099,1756390256963,-480.0,0.00020821,2]
[381886100,1756390256972,-485.03,0.00020821,2]
[381886101,1756390256982,-480.0,0.00020821,2]
[381886102,1756390256991,-206.90263512,0.00020821,2]
[381886103,1756390257000,-480.0,0.00020821,2]
[381886104,1756390257010,-480.0,0.00020821,2]
[381886105,1756390257019,-370.88356942,0.00020821,2]
[381886106,1756390257028,-480.0,0.00020821,2]
[381886107,1756390257037,-480.0,0.00020821,2]
[381886108,1756390257047,-480.0,0.00020821,2]
[381886109,1756390257057,-480.0,0.00020821,2]
[381886110,1756390257067,-619.44240884,0.00020821,2]
[381886111,1756390257076,-480.0,0.00020821,2]
[381886112,1756390257085,-480.0,0.00020821,2]
[381886113,1756390257093,-480.0,0.00020821,2]
[381886114,1756390257100,-480.0,0.00020821,2]
[381886115,1756390257108,-596.22912422,0.00020821,2]
[381886116,1756390257116,-526.07,0.00020821,2]
[381886117,1756390257124,-480.0,0.00020821,2]
[381886118,1756390257132,-480.0,0.00020821,2]
[381886119,1756390257142,-480.0,0.00020821,2]
[381886120,1756390257152,-493.51,0.00020821,2]
[381886121,1756390257162,-480.0,0.00020821,2]
[381886122,1756390257171,-480.0,0.00020821,2]
[381886123,1756390257180,-480.0,0.00020821,2]
[381886124,1756390257189,-791.6,0.00020821,2]
[381886125,1756390257199,-480.0,0.00020821,2]
[381886126,1756390257208,-480.0,0.00020821,2]
[381886127,1756390257217,-480.0,0.00020821,2]
[381886128,1756390257226,-480.0,0.00020821,2]
[381886129,1756390257236,-762.38,0.00020821,2]
[381886130,1756390257245,-480.0,0.00020821,2]
[381886131,1756390257255,-480.0,0.00020821,2]
[381886132,1756390257264,-525.21,0.00020821,2]
[381886133,1756390257273,-480.0,0.00020821,2]
[381886134,1756390257282,-517.02,0.00020821,2]
[381886135,1756390257291,-632.48,0.00020821,2]
[381886136,1756390257300,-456.29058473,0.00020821,2]
[381886137,1756390257309,-480.0,0.00020821,2]
[381886138,1756390257319,-480.0,0.00020821,2]
[381886139,1756390257328,-480.0,0.00020821,2]
[381886140,1756390257337,-480.0,0.00020821,2]
[381886141,1756390257346,-702.46,0.00020821,2]
[381886142,1756390257355,-480.0,0.00020821,2]
[381886143,1756390257365,-491.59,0.00020821,2]
[381886144,1756390257376,-480.0,0.00020821,2]
[381886145,1756390257386,-480.0,0.00020821,2]
[381886146,1756390257395,-151.0,0.00020821,2]
[381886147,1756390257404,-738.47,0.00020821,2]
[381886148,1756390257413,-480.0,0.00020821,2]
[381886149,1756390257422,-496.16,0.00020821,2]
[381886150,1756390257431,-480.0,0.00020821,2]
[381886151,1756390257440,-480.0,0.00020821,2]
[381886152,1756390257449,-480.0,0.00020821,2]
[381886153,1756390257458,-480.0,0.00020821,2]
[381886154,1756390257468,-606.98,0.00020821,2]
[381886155,1756390257478,-1150.46,0.00020821,2]
[381886156,1756390257489,-505.94,0.00020821,2]
[381886157,1756390257501,-480.0,0.00020821,2]
[381886158,1756390257511,-480.0,0.00020821,2]
[381886159,1756390257520,-480.0,0.00020821,2]
[381886160,1756390257529,-480.0,0.00020821,2]
[381886161,1756390257538,-480.0,0.00020821,2]
[381886162,1756390257547,-676.67,0.00020821,2]
[381886163,1756390257557,-566.43,0.00020821,2]
[381886164,1756390257565,-480.0,0.00020821,2]
[381886165,1756390257575,-480.0,0.00020821,2]
[381886166,1756390257584,-151.0,0.00020821,2]
[381886167,1756390257594,-480.0,0.00020821,2]
[381886168,1756390257603,-666.62,0.00020821,2]
[381886169,1756390257611,-480.0,0.00020821,2]
[381886170,1756390257620,-480.0,0.00020821,2]
[381886171,1756390257629,-200.962208,0.00020821,2]
[381886172,1756390257638,-151.0,0.00020821,2]
[381886173,1756390257648,-2721.04,0.00020821,2]
[381886174,1756390257658,-480.0,0.00020821,2]
[381886175,1756390257667,-485.28,0.00020821,2]
[381886176,1756390257676,-859.16,0.00020821,2]
[381886177,1756390257685,-869.41,0.00020821,2]
[381886178,1756390257694,-270.92978184,0.00020821,2]
[381886179,1756390257703,-480.0,0.00020821,2]
[381886180,1756390257713,-480.0,0.00020821,2]
[381886181,1756390257723,-1794.28,0.00020821,2]
[381886182,1756390257732,-480.0,0.00020821,2]
[381886183,1756390257742,-480.0,0.00020821,2]
[381886184,1756390257751,-480.0,0.00020821,2]
[381886185,1756390257761,-689.56,0.00020821,2]
[381886186,1756390257770,-480.0,0.00020821,2]
[381886187,1756390257779,-480.0,0.00020821,2]
[381886188,1756390257789,-480.0,0.00020821,2]
[381886189,1756390257798,-2148.57,0.00020821,2]
[381886190,1756390257808,-480.0,0.00020821,2]
[381886191,1756390257817,-480.0,0.00020821,2]
[381886192,1756390257826,-1096.18,0.00020821,2]
[381886193,1756390257835,-480.0,0.00020821,2]
[381886194,1756390257844,-480.0,0.00020821,2]
[381886195,1756390257853,-514.08,0.00020821,2]
[381886196,1756390257864,-577.34,0.00020821,2]
[381886197,1756390257876,-480.0,0.00020821,2]
[381886198,1756390257888,-480.0,0.00020821,2]
[381886199,1756390257899,-1731.68,0.00020821,2]
[381886200,1756390257909,-1238.18,0.00020821,2]
[381886201,1756390257921,-480.0,0.00020821,2]
[381886202,1756390257932,-2879.86,0.00020821,2]
[381886203,1756390257943,-538.0,0.00020821,2]
[381886204,1756390257955,-480.0,0.00020821,2]
[381886205,1756390257966,-480.0,0.00020821,2]
[381886206,1756390257978,-151.0,0.00020821,2]
[381886207,1756390257990,-480.0,0.00020821,2]
[381886208,1756390258001,-480.0,0.00020821,2]
[381886209,1756390258012,-4523.88,0.00020821,2]
[381886210,1756390258023,-740.67,0.00020821,2]
[381886211,1756390258032,-626.88180586,0.00020821,2]
[381886212,1756390258040,-480.0,0.00020821,2]
[381886213,1756390258048,-2214.23,0.00020821,2]
[381886214,1756390258055,-2893.15,0.00020821,2]
[381886215,1756390258062,-1321.12,0.00020821,2]
[381886216,1756390258069,-480.0,0.00020821,2]
[381886217,1756390258076,-480.0,0.00020821,2]
[381886218,1756390258083,-480.0,0.00020821,2]
[381886219,1756390258090,-1313.43,0.00020821,2]
[381886220,1756390258097,-480.0,0.00020821,2]
[381886221,1756390258105,-480.0,0.00020821,2]
[381886222,1756390258112,-480.0,0.00020821,2]
[381886223,1756390258118,-480.0,0.00020821,2]
[381886224,1756390258125,-2213.76,0.00020821,2]
[381886225,1756390258132,-480.0,0.00020821,2]
[381886226,1756390258140,-480.0,0.00020821,2]
[381886227,1756390258147,-1462.65,0.00020821,2]
[381886228,1756390258153,-480.0,0.00020821,2]
[381886229,1756390258161,-3398.86,0.00020821,2]
[381886230,1756390258169,-480.0,0.00020821,2]
[381886231,1756390258177,-480.0,0.00020821,2]
[381886232,1756390258183,-480.0,0.00020821,2]
[381886233,1756390258189,-618.19,0.00020821,2]
[381886234,1756390258198,-609.17,0.00020821,2]
[381886235,1756390258205,-480.0,0.00020821,2]
[381886236,1756390258212,-480.0,0.00020821,2]
[381886237,1756390258220,-480.0,0.00020821,2]
[381886238,1756390258228,-1003.09,0.00020821,2]
[381886239,1756390258238,-480.0,0.00020821,2]
[381886240,1756390258246,-480.0,0.00020821,2]
[381886241,1756390258253,-491.98,0.00020821,2]
[381886242,1756390258261,-572.96,0.00020821,2]
[381886243,1756390258269,-2866.05,0.00020821,2]
[381886244,1756390258276,-480.0,0.00020821,2]
[381886245,1756390258283,-480.0,0.00020821,2]
[381886246,1756390258290,-480.0,0.00020821,2]
[381886247,1756390258297,-480.0,0.00020821,2]
[381886248,1756390258303,-707.05,0.00020821,2]
[381886249,1756390258310,-621.84,0.00020821,2]
[381886250,1756390258318,-480.0,0.00020821,2]
[381886251,1756390258325,-683.04,0.00020821,2]
[381886252,1756390258332,-480.0,0.00020821,2]
[381886253,1756390258339,-480.0,0.00020821,2]
[381886254,1756390258347,-515.85,0.00020821,2]
[381886255,1756390258354,-151.0,0.00020821,2]
[381886256,1756390258360,-480.0,0.00020821,2]
[381886257,1756390258367,-480.0,0.00020821,2]
[381886258,1756390258374,-480.0,0.00020821,2]
[381886259,1756390258381,-151.0,0.00020821,2]
[381886260,1756390258388,-480.0,0.00020821,2]
[381886261,1756390258396,-1804.28,0.00020821,2]
[381886262,1756390258403,-937.39,0.00020821,2]
[381886263,1756390258411,-151.0,0.00020821,2]
[381886264,1756390258418,-480.0,0.00020821,2]
[381886265,1756390258425,-1344.44,0.00020821,2]
[381886266,1756390258432,-480.0,0.00020821,2]
[381886267,1756390258438,-768.17,0.00020821,2]
[381886268,1756390258445,-480.0,0.00020821,2]
[381886269,1756390258453,-480.0,0.00020821,2]
[381886270,1756390258461,-480.0,0.00020821,2]
[381886271,1756390258473,-480.0,0.00020821,2]
[381886272,1756390258485,-480.0,0.00020821,2]
[381886273,1756390258495,-2384.43,0.00020821,2]
[381886274,1756390258508,-2447.69,0.00020821,2]
[381886275,1756390258518,-480.0,0.00020821,2]
[381886276,1756390258528,-480.0,0.00020821,2]
[381886277,1756390258538,-279.35570833,0.00020821,2]
[381886278,1756390258548,-480.0,0.00020821,2]
[381886279,1756390258559,-872.41,0.00020821,2]
[381886280,1756390258569,-747.1,0.00020821,2]
[381886281,1756390258580,-480.0,0.00020821,2]
[381886282,1756390258591,-953.96,0.00020821,2]
[381886283,1756390258600,-1129.71,0.00020821,2]
[381886284,1756390258610,-480.0,0.00020821,2]
[381886285,1756390258620,-192.5932,0.00020821,2]
[381886286,1756390258630,-192.5932,0.00020821,2]
[381886287,1756390258640,-192.5932,0.00020821,2]
[381886288,1756390258650,-192.593201,0.00020821,2]
[381886289,1756390258660,-1235.79,0.00020821,2]
[381886290,1756390258669,-480.0,0.00020821,2]
[381886291,1756390258679,-480.0,0.00020821,2]
[381886292,1756390258689,-480.0,0.00020821,2]
[381886293,1756390258699,-480.0,0.00020821,2]
[381886294,1756390258708,-151.0,0.00020821,2]
[381886295,1756390258718,-1430.38,0.00020821,2]
[381886296,1756390258728,-855.0,0.00020822,2]
[381886297,1756390258740,-238.0,0.00020825,2]
[381886298,1756390258749,-168.0,0.00020857,2]
[381886299,1756390258759,-400.02168337,0.00020868,2]
[381886300,1756390258769,-1500.0,0.00020868,2]
[381886301,1756390258779,-1500.0,0.00020868,2]
[381886302,1756390258789,-1500.0,0.00020868,2]
[381886303,1756390258799,-1500.0,0.00020868,2]
[381886304,1756390258809,-1513.58098907,0.00020868,2]
[381886305,1756390258819,-1500.0,0.00020868,2]
[381886306,1756390258830,-513.00383394,0.00020868,2]
[381886307,1756390258840,-1500.0,0.00020868,2]
[381886308,1756390258849,-1560.07191761,0.00020868,2]
[381886309,1756390258859,-1013.42447899,0.00020868,2]
[381886310,1756390258870,-1500.0,0.00020868,2]
[381886311,1756390258879,-1407.82912697,0.0002098,2]
[381886312,1756390258889,-360.0,0.00020996,2]
[381886313,1756390258899,-6579.09041627,0.00021,5]
[381886314,1756390258909,-324.01163657,0.00021,2]
[381886315,1756390258918,-47237.46949862,0.00021,5]
[381886316,1756390258928,-3000.0,0.00021,2]
[381886317,1756390258938,-151.0,0.00021,2]
[381886318,1756390258947,-3000.0,0.0002101,2]
[381886319,1756390258957,-3000.0,0.0002102,2]
[381886320,1756390258967,-168.0,0.00021027,2]
[381886321,1756390258977,-3000.0,0.0002103,2]
[381886322,1756390258989,-3000.0,0.0002104,2]
[381886323,1756390259000,-600.0,0.0002104,2]
[381886324,1756390259010,-168.0,0.00021043,2]
[381886325,1756390259019,-3000.0,0.0002105,2]
[381886326,1756390259029,-3000.0,0.0002106,2]
[381886327,1756390259039,-3000.0,0.0002107,2]
[381886328,1756390259049,-3000.0,0.0002108,2]
[381886329,1756390259059,-3000.0,0.0002109,2]
[381886330,1756390259068,-480.0,0.00021095,2]
[381886331,1756390259078,-480.0,0.00021095,2]
[381886332,1756390259088,-480.0,0.00021095,2]
[381886333,1756390259098,-480.0,0.00021095,2]
[381886334,1756390259108,-529.37,0.00021095,2]
[381886335,1756390259118,-480.0,0.00021095,2]
[381886336,1756390259127,-485.03,0.00021095,2]
[381886337,1756390259137,-480.0,0.00021095,2]
[381886338,1756390259147,-480.0,0.00021095,2]
[381886339,1756390259157,-480.0,0.00021095,2]
[381886340,1756390259166,-480.0,0.00021095,2]
[381886341,1756390259175,-480.0,0.00021095,2]
[381886342,1756390259185,-480.0,0.00021095,2]
[381886343,1756390259195,-480.0,0.00021095,2]
[381886344,1756390259204,-480.0,0.00021095,2]
[381886345,1756390259213,-480.0,0.00021095,2]
[381886346,1756390259223,-480.0,0.00021095,2]
[381886347,1756390259232,-480.0,0.00021095,2]
[381886348,1756390259242,-526.07,0.00021095,2]
[381886349,1756390259252,-480.0,0.00021095,2]
[381886350,1756390259262,-480.0,0.00021095,2]
[381886351,1756390259271,-480.0,0.00021095,2]
[381886352,1756390259281,-493.51,0.00021095,2]
[381886353,1756390259291,-480.0,0.00021095,2]
[381886354,1756390259300,-480.0,0.00021095,2]
[381886355,1756390259309,-480.0,0.00021095,2]
[381886356,1756390259319,-791.6,0.00021095,2]
[381886357,1756390259328,-480.0,0.00021095,2]
[381886358,1756390259338,-480.0,0.00021095,2]
[381886359,1756390259347,-335.45996539,0.00021095,2]
[381886360,1756390259358,-480.0,0.00021095,2]
[381886361,1756390259367,-762.38,0.00021095,2]
[381886362,1756390259377,-480.0,0.00021095,2]
[381886363,1756390259387,-480.0,0.00021095,2]
[381886364,1756390259397,-525.21,0.00021095,2]
[381886365,1756390259407,-480.0,0.00021095,2]
[381886366,1756390259416,-517.02,0.00021095,2]
[381886367,1756390259425,-632.48,0.00021095,2]
[381886368,1756390259435,-480.0,0.00021095,2]
[381886369,1756390259444,-480.0,0.00021095,2]
[381886370,1756390259454,-480.0,0.00021095,2]
[381886371,1756390259464,-480.0,0.00021095,2]
[381886372,1756390259474,-702.46,0.00021095,2]
[381886373,1756390259485,-480.0,0.00021095,2]
[381886374,1756390259494,-491.59,0.00021095,2]
[381886375,1756390259509,-480.0,0.00021095,2]
[381886376,1756390259518,-480.0,0.00021095,2]
[381886377,1756390259528,-738.47,0.00021095,2]
[381886378,1756390259538,-480.0,0.00021095,2]
[381886379,1756390259550,-496.16,0.00021095,2]
[381886380,1756390259559,-546.99480771,0.00021095,2]
[381886381,1756390259569,-480.0,0.00021095,2]
[381886382,1756390259580,-480.0,0.00021095,2]
[381886383,1756390259590,-394.23785373,0.00021095,2]
[381886384,1756390259600,-606.98,0.00021095,2]
[381886385,1756390259610,-1150.46,0.00021095,2]
[381886386,1756390259620,-505.94,0.00021095,2]
[381886387,1756390259630,-480.0,0.00021095,2]
[381886388,1756390259640,-480.0,0.00021095,2]
[381886389,1756390259650,-480.0,0.00021095,2]